Cogmind - Beta 11.1 @@@ ROGUE MODE // 2022.12.05 @ 23:44:56 Player: L1l7 Result: Destroyed by Y-54 Guardian with Gatling Laser Performance ------------- Evolutions (3) 1500 Regions Visited (5) 1000 Robots Destroyed (17) 85 Value Destroyed (328) 328 Prototype IDs (0) 0 Alien Tech Used (0) 0 Bonus (19) 19 TOTAL SCORE: 2932 Bonus ------- High Alert Combat Kills 19 Cogmind --------- Core Integrity 0/700 Matter 67/300 Energy 100/100 System Corruption 0% Temperature Cool (12) Movement Core (50) Location -7/Factory Parts ------- > --- POWER (2) -------- (None) > --- PROPULSION (5) --- (None) > --- UTILITY (4) ------ Improved Signal Interpreter > --- WEAPON (2) ------- (None) > --- INVENTORY (5) ---- (None) Peak State ------------ > --- POWER ------------ Light Deuterium Engine Light Nuclear Core > --- PROPULSION ------- Armored Huge Wheel > --- UTILITY ---------- Improved Sensor Array Improved Reaction Control System > --- WEAPON ----------- Ion Cannon > --- INVENTORY -------- Light Deuterium Engine Plasma Cutter [Rating: 25] Favorites ----------- Power Light Nuclear Core Engine Light Deuterium Engine Power Core Light Nuclear Core Propulsion VTOL Module Wheel Armored Huge Wheel Flight Unit VTOL Module Utility Improved Reaction Control System Device Improved Reaction Control System Storage Small Storage Unit Processor Improved Signal Interpreter Weapon Ion Cannon Energy Gun Small Laser Energy Cannon Ion Cannon Ballistic Gun Assault Rifle Ballistic Cannon Improved Light Cannon Launcher Grenade Launcher Special Weapon Plasma Cutter Build | -11 -10 -9 -9 -8 -7 ------- Run | Scr Mat Mat Sto Mat Fac Slots Evolved 6 | . . 2 . 2 2 Power 1 | . . 1 . . . Propulsion 3 | . . 1 . 1 1 Utility 2 | . . . . 1 1 Weapon . | . . . . . . Parts Attached 45 | 6 4 13 3 5 14 Power 9 | 1 1 1 1 1 4 Engine 4 | 1 1 . . . 2 Core 5 | . . 1 1 1 2 Reactor . | . . . . . . Propulsion 22 | 2 2 9 1 3 5 Treads . | . . . . . . Leg . | . . . . . . Wheel 5 | 2 . 2 . . 1 Hover . | . . . . . . Flight 17 | . 2 7 1 3 4 Utility 5 | 1 . 1 . . 3 Device 3 | . . 1 . . 2 Storage 1 | 1 . . . . . Processor 1 | . . . . . 1 Hackware . | . . . . . . Protection . | . . . . . . Artifact . | . . . . . . Weapon 9 | 2 1 2 1 1 2 Energy Gun 1 | 1 . . . . . Energy Cannon 1 | . . . . . 1 Ballistic Gun 2 | 1 1 . . . . Ballistic Cannon 2 | . . 1 . 1 . Launcher 1 | . . . 1 . . Special Weapon 2 | . . 1 . . 1 Impact Weapon . | . . . . . . Slashing Weapon . | . . . . . . Piercing Weapon . | . . . . . . Special Melee Weapon . | . . . . . . Unidentified Prototypes . | . . . . . . Parts Lost 23 | . 1 . 4 6 12 Power 7 | . 1 . 1 1 4 Propulsion 10 | . . . 2 4 4 Utility 2 | . . . . . 2 Weapon 4 | . . . 1 1 2 Highest Loss Streak 9 | . 1 . 2 5 9 To Critical Strikes . | . . . . . . Average Slot Usage (%) 44 | . 71 48 49 32 31 Engine 4 | . 11 . . . 5 Core 5 | . . 7 10 6 5 Wheel 3 | . 6 . . . 5 Flight 14 | . 21 27 28 19 1 Device 2 | . . 5 . . 4 Energy Cannon 2 | . . . . . 4 Ballistic Gun 5 | . 24 . . . . Ballistic Cannon 1 | . . 7 3 5 . Launcher 1 | . . . 6 . . Naked Turns 9 | . . 7 . 2 . Heaviest Build 19 | 13 13 12 9 10 19 Greatest Support 28 | 26 26 12 12 17 28 Greatest Overweight (x) 1 | . . . . 1 1 Average Overweight (x) . | . . . . . . Largest Inventory Capacity 8 | 8 8 5 5 5 5 Average Capacity 5 | 6 5 5 5 5 5 Most Carried 5 | 2 4 5 5 5 5 Average Carried 2 | . 2 4 4 3 1 Final Capacity 8 | 8 5 5 5 5 5 Final Carried 5 | . 3 5 3 3 . Class Distribution -------------------- 54% | Mutant 32% | Sprinter 13% | Scavenger-Mutant Dominant Class ---------------- Scavenger-Mutant | -10/Materials Sprinter | -9/Materials Sprinter | -9/Storage Sprinter | -8/Materials Mutant | -7/Factory Resources | -11 -10 -9 -9 -8 -7 ----------- Run | Scr Mat Mat Sto Mat Fac Matter Collected 553 | 165 106 . 58 167 57 Remotely . | . . . . . . Salvage Created 349 | . 125 23 119 25 57 Parts 39 | . 16 2 11 4 6 Haulers Intercepted . | . . . . . . Recyclers Shooed . | . . . . . . Parts Field Recycled . | . . . . . . Retrieved Matter . | . . . . . . Parts Self-Destructed . | . . . . . . Prevented . | . . . . . . Kills | -11 -10 -9 -9 -8 -7 ------- Run | Scr Mat Mat Sto Mat Fac Combat Hostiles Destroyed 14 | . 5 . 6 2 1 Guns 5 | . 5 . . . . Cannons 7 | . . . 4 2 1 AOE 2 | . . . 2 . . Classes Destroyed 4 | . 2 1 1 . . Worker 1 | . . . 1 . . Watcher 2 | . . 1 . . 1 Swarmer 10 | . 3 . 4 2 1 Grunt 4 | . 2 . 2 . . Best Kill Streak 4 | . 3 1 4 2 1 Combat Bots Only 4 | . 3 . 4 2 1 Max Kills in Single Turn 2 | . 1 1 2 1 1 Gunslinging . | . . . . . . Exploded 2 | . . . 2 . . Melee . | . . . . . . Uniques/NPCs Destroyed . | . . . . . . Combat | -11 -10 -9 -9 -8 -7 -------- Run | Scr Mat Mat Sto Mat Fac Damage Taken 2726 | . 256 106 362 597 1405 Core 1270 | . 95 40 162 268 705 Absorbed by Shields . | . . . . . . Core Remaining (%) 65 | 100 62 . 49 51 . Volleys Fired 56 | . 17 4 16 13 6 Largest 2 | . 2 1 1 1 1 Hottest 60 | . 60 39 39 44 60 Shots Fired 73 | . 34 4 16 13 6 Gun 34 | . 34 . . . . Cannon 23 | . . 2 7 13 1 Launcher 9 | . . . 9 . . Special 7 | . . 2 . . 5 Kinetic 48 | . 26 2 7 13 . Thermal 16 | . 8 2 . . 6 Explosive 9 | . . . 9 . . Electromagnetic . | . . . . . . Robot Hit Streak 7 | . 7 1 4 1 3 Robot Miss Streak 5 | . 5 1 1 4 1 Penetration Max . | . . . . . . Secondary Targets . | . . . . . . Shots Hit Robots 34 | . 19 1 8 2 4 Core Hits 25 | . 7 1 12 2 3 Critical Kills . | . . . . . . Critical Parts Destroyed . | . . . . . . Critical Strikes 1 | . . . 1 . . Blast 1 | . . . 1 . . Melee Attacks . | . . . . . . Impact . | . . . . . . Slashing . | . . . . . . Piercing . | . . . . . . Sneak Attacks . | . . . . . . Combat Hostiles . | . . . . . . Follow-up Attacks . | . . . . . . Damage Inflicted 907 | . 207 20 492 132 56 Guns 207 | . 207 . . . . Cannons 251 | . . 20 76 132 23 Explosions 416 | . . . 416 . . Melee . | . . . . . . Ramming . | . . . . . . Kinetic 399 | . 171 20 76 132 . Thermal 92 | . 36 . . . 56 Explosive 416 | . . . 416 . . Electromagnetic . | . . . . . . Impact . | . . . . . . Slashing . | . . . . . . Piercing . | . . . . . . Highest Corruption 2 | . . . 2 . . Average Corruption 2 | . . . 2 . . Corruption Purged . | . . . . . . Corruption Blocked . | . . . . . . Effects 4 | . . . 4 . . Heat Flow Errors 1 | . . . 1 . . Energy Discharges 1 | . . . 1 . . Data Loss (minor) 2 | . . . 2 . . Overload Shots . | . . . . . . Overflow Damage 29 | . . . 21 8 . Projectiles 8 | . . . . 8 . Explosions 21 | . . . 21 . . Melee . | . . . . . . Knockbacks . | . . . . . . Impact . | . . . . . . Kinetic . | . . . . . . Secondary . | . . . . . . Self-Inflicted Damage 37 | . . . 37 . . Shots 2 | . . . 2 . . Rammed . | . . . . . . Targets Rammed . | . . . . . . Kicked . | . . . . . . Crushed . | . . . . . . Highest Temperature 253 | . 32 7 253 81 18 Average Temperature 32 | . 9 5 57 21 13 Received Heat Transfer 681 | . 108 21 141 279 132 Effects 1 | . . . 1 . . Energy Bleed 1 | . . . 1 . . Siege Activations . | . . . . . . Robots Corrupted . | . . . . . . Combat Hostiles . | . . . . . . Parts Fried . | . . . . . . Impact Corruptions . | . . . . . . Robots Melted . | . . . . . . Combat Hostiles . | . . . . . . Parts Melted . | . . . . . . Heat Transferred 223 | . 75 . . . 148 Parts Sabotaged . | . . . . . . Parts Stolen . | . . . . . . Parts Stripped . | . . . . . . Power Chain Reactions . | . . . . . . Missiles Intercepted . | . . . . . . Alert | -11 -10 -9 -9 -8 -7 ------- Run | Scr Mat Mat Sto Mat Fac Peak Influence 516 | . 252 192 516 369 163 Initial 215 | . . 105 80 215 163 Average 160 | . 108 130 317 293 124 Maximum Alert Level 2 | . 1 . 2 1 . Low Security (%) 79 | 100 94 100 31 . 100 Level 1 14 | . 5 . 26 100 . Level 2 6 | . . . 41 . . Level 3 . | . . . . . . Level 4 . | . . . . . . Level 5 . | . . . . . . High Security . | . . . . . . Max Security . | . . . . . . Squads Dispatched 12 | . 2 2 1 6 1 Investigation 7 | . 2 1 1 2 1 Extermination . | . . . . . . Reinforcement 5 | . . 1 . 4 . Assault . | . . . . . . Garrison . | . . . . . . Intercept . | . . . . . . Searches Triggered . | . . . . . . Construction Impeded . | . . . . . . Haulers Reinforced . | . . . . . . Active Scanning Responses . | . . . . . . Cargo Convoy Interrupts . | . . . . . . Stealth | -11 -10 -9 -9 -8 -7 --------- Run | Scr Mat Mat Sto Mat Fac Distress Signals 1 | . . . 1 . . Communications Jammed . | . . . . . . Distress Signals . | . . . . . . Times Spotted 95 | . 13 13 27 28 14 Peak Tracking Total 18 | . 4 13 15 18 6 Tactical Retreats 15 | . 3 1 4 3 4 Traps | -11 -10 -9 -9 -8 -7 ------- Run | Scr Mat Mat Sto Mat Fac Traps Triggered 4 | . 1 1 1 1 . Indirectly . | . . . . . . Trap Hack Attempts . | . . . . . . Triggered . | . . . . . . Disarmed . | . . . . . . Reprogrammed . | . . . . . . Reused . | . . . . . . Traps Extracted . | . . . . . . Installed . | . . . . . . Triggered . | . . . . . . Machines | -11 -10 -9 -9 -8 -7 ---------- Run | Scr Mat Mat Sto Mat Fac Machines Disabled 2 | . . . 2 . . Max in Single Turn 1 | . . . 1 . . Machines Sabotaged . | . . . . . . Garrisons Compromised . | . . . . . . Overloaded Fab Kills . | . . . . . . Hacking | -11 -10 -9 -9 -8 -7 --------- Run | Scr Mat Mat Sto Mat Fac Machines Accessed 8 | . 2 1 1 1 3 Terminals 5 | . 1 1 1 1 1 Fabricators 1 | . . . . . 1 Repair Stations . | . . . . . . Recycling Units 2 | . 1 . . . 1 Scanalyzers . | . . . . . . Garrison Access . | . . . . . . Total Hacks 21 | . 6 3 3 3 6 Successful 13 | . 6 1 . 3 3 Failed 8 | . . 2 3 . 3 Catastrophic 1 | . . . 1 . . Database Lockouts . | . . . . . . Manual . | . . . . . . Terminals 13 | . 2 3 3 3 2 Fabricators 2 | . . . . . 2 Repair Stations . | . . . . . . Recycling Units 6 | . 4 . . . 2 Scanalyzers . | . . . . . . Garrison Access . | . . . . . . Terminal Hacks 7 | . 2 1 . 3 1 Record 3 | . . . . 3 . Open DSF 1 | . . . . . 1 Maintenance Status 1 | . 1 . . . . Patrol Status 1 | . 1 . . . . Hauler Manifests 1 | . . 1 . . . Fabricator Hacks . | . . . . . . Repair Station Hacks . | . . . . . . Recycling Unit Hacks 6 | . 4 . . . 2 Recycle Component 1 | . 1 . . . . Process 1 | . 1 . . . . Report Inventory 2 | . 1 . . . 1 Retrieve Components 2 | . 1 . . . 1 Scanalyzer . | . . . . . . Garrison Access Hacks . | . . . . . . Unauthorized Hacks . | . . . . . . Terminals . | . . . . . . Fabricators . | . . . . . . Repair Stations . | . . . . . . Recycling Units . | . . . . . . Scanalyzers . | . . . . . . Garrison Access . | . . . . . . Data Cores Recovered . | . . . . . . Used . | . . . . . . Hacking Detections 8 | . 2 1 1 1 3 Full Trace Events 4 | . 1 . 1 1 1 Feedback Events . | . . . . . . Feedback Blocked . | . . . . . . Robot Schematics Acquired . | . . . . . . Robots Built . | . . . . . . Authchips . | . . . . . . Time . | . . . . . . Total Robot Build Rating . | . . . . . . Part Schematics Acquired . | . . . . . . Parts Built . | . . . . . . Authchips . | . . . . . . Time . | . . . . . . Total Part Build Rating . | . . . . . . Parts Repaired . | . . . . . . Time . | . . . . . . Parts Recycled 1 | . 1 . . . . Recycled Matter 107 | . 107 . . . . Retrieved Matter . | . . . . . . Retrieved Components 1 | . . . . . 1 Parts Scanalyzed . | . . . . . . Part Schematics Acquired . | . . . . . . Parts Damaged . | . . . . . . Bothacking | -11 -10 -9 -9 -8 -7 ------------ Run | Scr Mat Mat Sto Mat Fac Used RIF Installer . | . . . . . . Robots Hacked . | . . . . . . Non-combat . | . . . . . . Combat . | . . . . . . Robot Hacks Applied . | . . . . . . Relay Couplers Released . | . . . . . . Fabnet Peak Effective % . | . . . . . . Robots Rewired . | . . . . . . Allies Hacked . | . . . . . . Hacks Repelled . | . . . . . . Allies | -11 -10 -9 -9 -8 -7 -------- Run | Scr Mat Mat Sto Mat Fac Total Allies . | . . . . . . Largest Group . | . . . . . . Highest-Rated Group . | . . . . . . Highest-Rated Ally . | . . . . . . Total Orders . | . . . . . . Ally Attacks . | . . . . . . Total Damage . | . . . . . . Kills . | . . . . . . Allies Corrupted . | . . . . . . Allies Melted . | . . . . . . Intel | -11 -10 -9 -9 -8 -7 ------- Run | Scr Mat Mat Sto Mat Fac Robot Analysis Total . | . . . . . . Derelict Logs Recovered . | . . . . . . Drone Launches . | . . . . . . Drone Recoveries . | . . . . . . Exploration | -11 -10 -9 -9 -8 -7 ------------- Run | Scr Mat Mat Sto Mat Fac Turns Passed 1540 | 61 340 131 227 142 639 Spaces Moved 1744 | 61 267 249 515 304 348 Core 52 | 14 . 7 . 5 26 Treads . | . . . . . . Legs . | . . . . . . Wheels 285 | 47 45 . . . 193 Hover . | . . . . . . Flight 1407 | . 222 242 515 299 129 Fastest Speed 28 | 50 37 29 29 28 32 Average Speed 44 | 80 45 33 30 35 75 Slowest Speed 115 | 90 90 50 32 115 115 Overloaded Moves . | . . . . . . Propulsion Burnouts . | . . . . . . Robots Hopped 23 | . 1 2 13 5 2 Cave-ins Triggered . | . . . . . . Exploration Rate (%) 25 | 3 33 20 56 37 6 Regions Visited 5 Branch Regions 1 Pre-discovered Areas . | . . . . . . Known Exits Taken . | . . . . . . Unknown Exits Taken 5 | 1 1 1 1 1 . Scrap Searched . | . . . . . . Spaces Dug 14 | . . . 13 1 . Terrain Destroyed 57 | . . . 53 4 . Melee . | . . . . . . Projectile 5 | . . . 1 4 . AOE 52 | . . . 52 . . Terrain Rammed . | . . . . . . Walls Destroyed . | . . . . . . Machines Disabled . | . . . . . . Actions | -11 -10 -9 -9 -8 -7 --------- Run | Scr Mat Mat Sto Mat Fac Total 2409 | 72 452 295 557 321 712 Wait 520 | . 151 . 35 . 334 Move 1695 | 60 264 244 489 294 344 Hop 21 | . 1 2 12 4 2 Pick Up 48 | 6 9 17 1 4 11 Fast Attach . | . . . . . . Attach 42 | 6 2 12 3 5 14 Detach 2 | . . 1 . 1 . Swap 3 | . 2 1 . . . Drop 22 | . 6 14 1 . 1 Fire 56 | . 17 4 16 13 6 Melee . | . . . . . . Ram . | . . . . . . Kick . | . . . . . . Crush . | . . . . . . Escape Stasis . | . . . . . . Rewire . | . . . . . . Trap . | . . . . . . Miscellaneous . | . . . . . . Route ------- -11/Scrapyard -10/Materials -9/Materials -9/Storage -8/Materials -7/Factory History --------- Turn | Location | Event 4 | -11/Scrapyard | Discovered new exit (range 16) 62 | -11/Scrapyard | Entered Materials 350 | -10/Materials | Discovered new exit (range 7) 402 | -10/Materials | Entered another Materials area 402 | -9/Materials | Evolved 2 slots: Power x1, Propulsion x1 529 | -9/Materials | Discovered new exit (range 13) 533 | -9/Materials | Entered Storage 751 | -9/Storage | Core integrity fell below 50% 752 | -9/Storage | Discovered new exit (range 10) 760 | -9/Storage | Entered Materials 760 | -8/Materials | Evolved 2 slots: Propulsion x1, Utility x1 776 | -8/Materials | Build established: Sprinter 898 | -8/Materials | Discovered new exit (range 12) 902 | -8/Materials | Entered Factory 902 | -7/Factory | Evolved 2 slots: Propulsion x1, Utility x1 923 | -7/Factory | Lost 5 parts (1p3n1w) 1158 | -7/Factory | Build established: Mutant 1436 | -7/Factory | Core integrity fell below 50% 1481 | -7/Factory | Lost 9 parts (3p2n2u2w) 1533 | -7/Factory | Core integrity fell below 20% 1541 | -7/Factory | Destroyed by Y-54 Guardian with Gatling Laser Last Messages --------------- Connecting with DSF Access... Acquired Imp. Signal Interpreter. [Achievement: I Spy] VTOL Module destroyed. S-27 Virus destroyed. K-01 Serf collects debris. Acquired 30 matter. Acquired VTOL Module. Imp. Sensor Array destroyed. Plasma Cutter destroyed. K-01 Serf collects debris. Acquired Lgt. Nuclear Core. Acquired VTOL Module. K-01 Serf cleans the Nuclear Reactor. Drone sends a signal. Lgt. Nuclear Core destroyed. VTOL Module destroyed. Slug penetrates Wall. VTOL Module destroyed. Slug penetrates Wall. Map ----- +----------------------------------------------------+ | ?????????????????????????????????????????? | | ?????????????????????????????????????????? | | ?????????????????????????????????????????? | | ?????????????????????????????????????????? | | ?????????????????????????????????????????? | | ?????????????????????????????????????????? | | ?????????????????????????????????????????? | | ?????????????????????????????????????????? | | ?????????????????????????????????????????? | | ?????????????????????????????????????????? | | ?????????????????????????????????????????? | | ?????????????????????????????????????????? | | ?????????????????????????????????????????? | | ?????????????????????????????????????????? | | ?????????????????????????????????????????? | | ?????????????????????????????????????????? | | ?????????????????????????????????????????? | | ?????????????????????????????????????????? | | ?????????????????????????????????????????? | | ????????????????########?????????????????? | | ????????????????# #?????????????????? | | ????????????????# #?????????????????? | | ????????????????# """ #?????????????????? | | ????????????????# """ #?????????????????? | | ????????????????# """ #?????????????????? | | ????????????????#@ Y #?????????????????? | | ????????????????####h###?????????????????? | | ???????????????????# #???????????????????? | | ???????????????????# #???????????????????? | | ???????????????????# #???????????????????? | | ???????????????????# #???????????????????? | | ???????????????????# #???????????????????? | | ???????????????????# #???????????????????? | | ???????????????????# #???????????????????? | | ???????????????????# #???????????????????? | | ????????????????#### #???????????????????? | | ????????????????+ #???????????????????? | | ????????????????# #???????????????????? | | ????????????????# #???????????????????? | | ????????????????+ #???????????????????? | | ????????????????# #???????????????????? | | ????????????##+## ####????????????????? | | ????? #????????????????? | | ????? ##+##+## #????????????????? | | ???????????????? ??# #????????????????? | | ??????????????"""??# +????????????????? | | ??????????????"""??# #????????????????? | | ??????????????""" ?# ##+#####????????????? | | ??????????????? ?# + #???????? | | ???????????????? ?# # """ """ ?????????? | +----------------------------------------------------+ Best States ------------- Heat Dissipation 34 Energy Generation 23 Energy Capacity 250 Matter Stores 216 Matter Capacity 300 Sight Range 16 Robot Scan Range 15 Terrain Scan Density 10 Evasion (%) 64 Item Schematics ----------------- None Robot Schematics ------------------ None Fabricated ------------ Nothing Alien Tech Used ----------------- None Achievements -------------- I Spy Challenges ------------ None Game ------ Seed MatterTiamatCharge Manual? 0 Play Time 00:27:54 Cumulative 10.4 hours Start 2022.12.05 @ 23:17:20 End 2022.12.05 @ 23:44:56 Sessions 1 Manual Loads 0 Difficulty Rogue Special Mode None Game No. 17 Rogue 17 Adventurer 0 Explorer 0 Win Type - Total 0 Types 0/0/0/0/0/0/0/0/0 Lore% 14 Gallery% 15 Achievement% 15 Wizard Run 0 Options --------- ASCII 0 Keyboard 0 Movement Arrows Keybinds 0 Fullscreen 2 Font 16/SmallcapsGlow Map View 76x50 Tactical HUD 0 Map Filters NONE Filters NONE Steam 1 RUN: 457e0dea-6105-4754-899d-b41857d45ae5